bitfinex-derivatives/quotes_BTCF0:USTF0_20240905
["timestamp","ask_amount","ask_price","bid_price","bid_amount"]
[1725516075363,0.05365412,57208.0,57207.0,1.26826203]
[1725516075557,0.05365412,57208.0,57207.0,1.50826203]
[1725516075861,0.05365412,57208.0,57207.0,0.96944603]
[1725516076064,0.05365412,57208.0,57207.0,0.20504603]
[1725516076266,0.24,57211.0,57210.0,0.061181]
[1725516077465,0.24,57213.0,57207.0,0.17582999]
[1725516077662,0.24,57213.0,57212.0,0.061179]
[1725516077850,0.06269848,57216.0,57212.0,0.061179]
[1725516078067,0.24,57216.0,57215.0,0.061175]
[1725516079455,0.29365373,57216.0,57215.0,0.061175]
[1725516079654,0.52832171,57216.0,57215.0,0.062175]
[1725516080053,0.31069848,57216.0,57215.0,0.062175]
[1725516080257,0.30665487,57216.0,57215.0,0.062175]
[1725516080455,0.36935335,57216.0,57215.0,0.062175]
[1725516080653,0.36135335,57216.0,57215.0,0.061175]
[1725516080854,0.30265487,57216.0,57215.0,0.061175]
[1725516081062,0.30165487,57216.0,57215.0,0.061175]
[1725516081464,0.36435335,57216.0,57215.0,0.061175]
[1725516082064,0.36435303,57216.0,57215.0,0.061175]
[1725516083164,0.36435303,57216.0,57215.0,0.09332068]
[1725516083971,0.30165455,57216.0,57215.0,0.09332068]
[1725516084567,0.36435079,57216.0,57215.0,0.09332068]
[1725516085068,0.49435079,57216.0,57215.0,0.09332068]
[1725516085374,0.44435079,57216.0,57215.0,0.09332068]
[1725516085765,0.43435079,57216.0,57215.0,0.09332068]
[1725516086364,0.36435079,57216.0,57215.0,0.09332068]
[1725516087171,0.36435141,57216.0,57215.0,0.09332068]
[1725516089072,0.36435157,57216.0,57215.0,0.09332068]
[1725516091771,0.12435157,57216.0,57215.0,0.09332068]
[1725516091971,0.30165533,57216.0,57215.0,0.09332068]
[1725516092176,0.36435157,57216.0,57215.0,0.09332068]
[1725516093573,0.31069624,57216.0,57215.0,0.09332068]
[1725516095068,0.248,57216.0,57215.0,0.03214568]
[1725516095276,0.061176,57215.0,57210.0,0.06118]
[1725516095576,0.24,57211.0,57210.0,0.06118]
[1725516095768,0.30270107,57211.0,57210.0,0.06118]
[1725516097067,0.30270107,57211.0,57210.0,0.06418]
[1725516097477,0.30270107,57211.0,57210.0,0.06218]
[1725516097767,0.30270107,57211.0,57210.0,0.06418]
[1725516098978,0.30370107,57211.0,57210.0,0.06318]
[1725516099175,0.30370107,57211.0,57210.0,0.06118]
[1725516099368,0.30470107,57211.0,57210.0,0.06118]
[1725516102783,0.242,57211.0,57210.0,0.06118]
[1725516105076,0.322,57211.0,57210.0,0.06118]
[1725516105278,0.38470107,57211.0,57210.0,0.06118]
[1725516105981,0.30470107,57211.0,57210.0,0.06118]
[1725516108078,0.16470107,57211.0,57210.0,0.06118]
[1725516108277,0.102,57211.0,57210.0,0.06118]
[1725516112583,0.102,57211.0,57210.0,0.42198]
[1725516112884,0.002,57211.0,57210.0,0.06118]
[1725516118986,0.002,57211.0,57210.0,0.16118]
[1725516126695,0.00026203,57218.0,57217.0,0.061173]
[1725516126900,0.00026203,57218.0,57217.0,0.16980544]
[1725516127195,0.00026203,57218.0,57217.0,0.69412544]
[1725516127894,0.00326203,57218.0,57217.0,0.69512544]
[1725516128087,0.00826203,57218.0,57217.0,0.83512544]
[1725516128287,0.00826203,57218.0,57217.0,0.826493]
[1725516128692,0.00326203,57218.0,57217.0,0.825493]
[1725516128888,0.00326203,57218.0,57217.0,0.827493]
[1725516129290,0.00326203,57218.0,57217.0,0.303173]
[1725516129496,0.00226203,57218.0,57217.0,0.303173]
[1725516129901,0.00226203,57218.0,57217.0,0.33413013]
[1725516130294,0.00226203,57218.0,57217.0,0.33713013]
[1725516130295,0.00026203,57218.0,57217.0,0.33713013]
[1725516130696,0.05390754,57218.0,57217.0,0.33713013]
[1725516131508,0.00026203,57218.0,57217.0,0.09713013]
[1725516132791,0.00026203,57218.0,57217.0,0.09413013]
[1725516132988,0.00026203,57218.0,57217.0,0.09613013]
[1725516133599,0.00126203,57218.0,57217.0,0.09413013]
[1725516134092,0.00126203,57218.0,57217.0,0.09313013]
[1725516134998,0.00126203,57218.0,57217.0,0.09213013]
[1725516134999,0.00226203,57218.0,57217.0,0.09213013]
[1725516136804,0.07226203,57218.0,57217.0,0.03095713]
[1725516137103,0.13495285,57218.0,57213.0,0.061177]
[1725516137307,0.24,57214.0,57213.0,0.061177]
[1725516138102,0.30269082,57214.0,57213.0,0.061177]
[1725516138493,0.24,57214.0,57213.0,0.065177]
[1725516139201,0.30269082,57214.0,57213.0,0.065177]
[1725516140106,0.30269082,57214.0,57213.0,0.069177]
[1725516140604,0.36386682,57214.0,57213.0,0.004]
[1725516140794,0.060178,57213.0,57209.0,0.45270809]
[1725516140998,0.17652505,57213.0,57209.0,0.45270809]
[1725516141302,0.11483523,57212.0,57209.0,0.45270809]
[1725516141500,0.05365623,57211.0,57209.0,0.45270809]
[1725516142697,0.061179,57212.0,57209.0,0.45270809]
[1725516142901,0.004,57214.0,57213.0,0.061177]
[1725516143290,0.004,57214.0,57212.0,0.0463]
[1725516143291,0.00026203,57218.0,57217.0,0.061173]
[1725516143494,0.00026203,57218.0,57217.0,0.301173]
[1725516144004,0.00196,57230.0,57218.0,0.061172]
[1725516144204,0.06268061,57235.0,57229.0,0.24]
[1725516144508,0.06268061,57235.0,57234.0,0.301155]
[1725516144700,0.05363677,57235.0,57234.0,0.301155]
[1725516145500,0.05363461,57235.0,57234.0,0.301155]
[1725516145705,0.05363461,57235.0,57234.0,0.061155]
[1725516146691,0.05363461,57235.0,57234.0,0.301155]
[1725516146895,0.05363461,57235.0,57234.0,0.33235985]
[1725516147099,0.06763461,57235.0,57234.0,0.33335985]
[1725516147404,0.07263461,57235.0,57234.0,0.33435985]
[1725516148203,0.2990836,57235.0,57234.0,0.33435985]
[1725516148603,0.07263461,57235.0,57234.0,0.33435985]
[1725516149291,0.07263461,57235.0,57234.0,0.09435985]
[1725516150409,0.07263597,57235.0,57234.0,0.09435985]
[1725516152305,0.07263597,57235.0,57234.0,0.002]
[1725516152306,0.31263597,57235.0,57234.0,0.002]
[1725516152502,0.37531658,57235.0,57234.0,0.002]
[1725516152807,0.79727058,57235.0,57234.0,0.002]
[1725516153003,2.09258458,57235.0,57234.0,0.002]
[1725516153302,2.16429444,57235.0,57234.0,0.002]
[1725516154196,2.17429444,57235.0,57234.0,0.002]
[1725516154395,2.05429444,57235.0,57234.0,0.002]
[1725516154704,0.85842458,57235.0,57234.0,0.002]
[1725516155308,2.09258458,57235.0,57234.0,0.002]
[1725516155607,2.09258458,57235.0,57229.0,0.00026203]
[1725516155608,0.061159,57230.0,57229.0,0.00026203]
[1725516155796,0.84559497,57230.0,57229.0,0.00026203]
[1725516156111,2.03247558,57230.0,57229.0,0.00026203]
[1725516156299,1.84147558,57230.0,57229.0,0.00026203]
[1725516156604,0.061169,57222.0,57217.0,0.061172]
[1725516156905,0.24,57218.0,57217.0,0.09252247]
[1725516157098,0.29363597,57218.0,57217.0,0.09252247]
[1725516157295,0.29263597,57218.0,57217.0,0.09252247]
[1725516157491,0.05363597,57218.0,57217.0,0.09252247]
[1725516157798,0.05263597,57218.0,57217.0,0.09252247]
[1725516158700,0.05363597,57218.0,57217.0,0.09252247]
[1725516159999,0.001,57218.0,57217.0,0.09252247]
[1725516160197,0.06468061,57218.0,57217.0,0.09252247]
[1725516160506,0.002,57218.0,57217.0,0.09252247]
[1725516161912,0.061174,57217.0,57212.0,0.00026203]
[1725516162101,0.002,57218.0,57212.0,0.00026203]
[1725516162102,0.24,57214.0,57212.0,0.03192316]
[1725516162606,0.301176,57214.0,57212.0,0.03192316]
[1725516162809,0.0536555,57213.0,57212.0,0.03192316]
[1725516163709,0.0536555,57213.0,57212.0,0.03692316]
[1725516164206,0.0536555,57213.0,57212.0,0.09810216]
[1725516164402,0.0536555,57213.0,57212.0,0.33810216]
[1725516164807,0.0536555,57213.0,57212.0,0.28092316]
[1725516164808,0.05365529,57213.0,57212.0,0.28092316]
[1725516165809,0.05365529,57213.0,57212.0,0.34210216]
[1725516169618,0.3608,57220.0,57218.0,0.061172]
[1725516169807,0.05365206,57219.0,57218.0,0.301172]
[1725516170709,0.05365206,57219.0,57218.0,0.396372]
[1725516171017,0.05565206,57219.0,57218.0,0.396372]
[1725516172809,0.05865206,57219.0,57218.0,0.396372]
[1725516173608,0.05865206,57219.0,57218.0,0.42842362]
[1725516174413,0.05864575,57219.0,57218.0,0.42842362]
[1725516176713,0.05864575,57219.0,57218.0,0.78922362]
[1725516179320,0.005,57219.0,57218.0,0.78922362]
[1725516179720,0.05864543,57219.0,57218.0,0.78922362]
[1725516182216,1e-08,57219.0,57218.0,1.97471562]
[1725516182414,0.05364085,57229.0,57222.0,0.061168]
[1725516182721,0.24,57235.0,57222.0,0.661968]
[1725516182722,0.05364085,57228.0,57222.0,0.661968]
[1725516183020,0.05364085,57227.0,57222.0,0.661968]
[1725516183224,0.05364085,57226.0,57222.0,0.661968]
[1725516183521,0.05390288,57223.0,57222.0,0.421968]
[1725516183730,0.06790288,57223.0,57222.0,0.423968]
[1725516183917,0.30790288,57223.0,57222.0,0.423968]
[1725516184217,0.31694838,57223.0,57222.0,0.3628]
[1725516184817,0.13059411,57223.0,57222.0,0.3628]
[1725516185122,0.01426203,57223.0,57222.0,0.3628]
[1725516185317,0.12907495,57223.0,57222.0,0.3628]
[1725516185929,0.13811538,57223.0,57222.0,0.3628]
[1725516186413,0.37811538,57223.0,57222.0,0.3628]
[1725516187917,0.07694838,57223.0,57222.0,0.423968]
[1725516188420,0.13059403,57223.0,57222.0,0.663968]
[1725516190616,0.13059403,57223.0,57222.0,0.423968]
[1725516190926,0.07694838,57223.0,57222.0,0.423968]
[1725516192830,0.01426203,57223.0,57222.0,0.063168]
[1725516195815,0.01426203,57223.0,57222.0,0.303168]
[1725516196018,0.06790649,57223.0,57222.0,0.303168]
[1725516197730,0.06790274,57223.0,57222.0,0.303168]
[1725516200935,0.13058909,57223.0,57222.0,0.303168]
[1725516204538,0.13059207,57223.0,57222.0,0.303168]
[1725516204834,0.07694838,57223.0,57222.0,0.303168]
[1725516205037,0.13059346,57223.0,57222.0,0.303168]
[1725516207139,0.06790711,57223.0,57222.0,0.303168]
[1725516207341,0.13059346,57223.0,57222.0,0.303168]
[1725516207932,0.06790711,57223.0,57222.0,0.303168]
[1725516209437,0.06268635,57231.0,57230.0,0.061159]
[1725516209645,0.05363591,57231.0,57230.0,0.661959]
[1725516209944,0.0478,57236.0,57235.0,0.061154]
[1725516210235,0.10143307,57236.0,57235.0,0.661954]
[1725516210441,0.0478,57236.0,57235.0,0.661954]
[1725516210636,0.10143343,57236.0,57235.0,0.661954]
[1725516210839,0.0478,57236.0,57235.0,0.661954]
[1725516211342,0.0598,57236.0,57235.0,0.662954]
[1725516211546,0.06563281,57236.0,57235.0,0.662954]
[1725516212543,0.06563251,57236.0,57235.0,0.662954]
[1725516212748,0.06563251,57236.0,57235.0,0.663954]
[1725516213450,0.06563251,57236.0,57235.0,0.69567818]
[1725516214737,0.06563251,57236.0,57235.0,0.45567818]
[1725516215335,0.12831886,57236.0,57235.0,0.45567818]
[1725516216945,0.12831886,57236.0,57235.0,0.09487818]
[1725516217943,0.06563251,57236.0,57235.0,0.09487818]
[1725516218252,0.06563251,57236.0,57235.0,0.33487818]
[1725516218439,0.06563251,57236.0,57235.0,0.38347818]
[1725516218634,0.06563251,57236.0,57235.0,0.47637818]
[1725516219340,0.12831886,57236.0,57235.0,0.47637818]
[1725516220148,0.06563251,57236.0,57235.0,0.47637818]
[1725516225552,0.06563251,57236.0,57235.0,0.83717818]
[1725516226655,0.06563251,57236.0,57235.0,0.69567818]
[1725516226954,0.06563251,57236.0,57235.0,0.45567818]
[1725516227551,0.06563071,57236.0,57235.0,0.45567818]
[1725516227747,0.06563071,57236.0,57235.0,0.69567818]
[1725516231657,0.06563071,57236.0,57235.0,0.69467818]
[1725516232358,0.0403443,57236.0,57235.0,0.75583218]
[1725516232554,0.00026203,57241.0,57240.0,0.061149]
[1725516232754,0.0538906,57241.0,57240.0,0.661949]
[1725516234562,0.0538906,57241.0,57240.0,0.663949]
[1725516237468,0.05388502,57241.0,57240.0,0.663949]
[1725516239167,0.05388502,57241.0,57240.0,0.661949]
[1725516240063,0.05388502,57241.0,57240.0,1.247218]
[1725516240262,0.06268635,57250.0,57249.0,0.061139]
[1725516240469,0.22691845,57253.0,57251.0,0.061137]
[1725516240470,0.06268635,57252.0,57251.0,0.061137]
[1725516241063,0.06268635,57254.0,57252.0,0.061135]
[1725516241263,0.3874048,57255.0,57252.0,0.061135]
[1725516241463,0.06268635,57254.0,57252.0,0.061135]
[1725516241668,0.16048635,57255.0,57252.0,0.061135]
[1725516241961,0.60284,57256.0,57252.0,0.061135]
[1725516241962,0.58382635,57256.0,57252.0,0.061135]
[1725516242267,0.58178635,57256.0,57253.0,0.061135]
[1725516242762,0.58178635,57256.0,57254.0,0.061133]
[1725516244169,0.58178635,57256.0,57252.0,0.002]
[1725516244365,0.40291835,57256.0,57252.0,0.062136]
[1725516244869,0.40291835,57256.0,57253.0,0.061134]
[1725516245064,0.0947,57255.0,57254.0,0.001]
[1725516245271,0.919793,57255.0,57254.0,0.001]
[1725516245470,1.519793,57255.0,57254.0,0.001]
[1725516245768,0.06114,57248.0,57240.0,0.3608]
[1725516245970,0.66194,57248.0,57231.0,0.3608]
[1725516246169,1.92864241,57248.0,57232.0,0.24]
[1725516246371,1.92864241,57248.0,57241.0,0.061147]
[1725516246563,2.00035192,57248.0,57241.0,0.061147]
[1725516247268,1.99035192,57248.0,57241.0,0.061147]
[1725516247464,1.98935192,57248.0,57241.0,0.061147]
[1725516247669,1.98835192,57248.0,57241.0,0.061147]
[1725516248071,1.98835192,57248.0,57247.0,0.00126203]
[1725516248766,1.98835192,57248.0,57247.0,0.00226203]
[1725516248972,1.91664241,57248.0,57247.0,0.00226203]
[1725516250177,1.61750241,57248.0,57247.0,0.00226203]
[1725516250487,1.91864241,57248.0,57247.0,0.00226203]
[1725516252188,1.96394241,57248.0,57247.0,0.00226203]
[1725516255183,2.03564911,57248.0,57247.0,0.00226203]
[1725516255686,2.09678911,57248.0,57247.0,0.00226203]
[1725516257678,1.85678911,57248.0,57247.0,0.00226203]
[1725516257984,0.90104241,57248.0,57247.0,0.00226203]
[1725516264394,0.83990241,57248.0,57247.0,0.00226203]
[1725516266989,0.55460241,57248.0,57247.0,0.06340303]
[1725516267198,0.48460241,57248.0,57247.0,0.09418002]
[1725516268688,0.48460241,57248.0,57247.0,0.03303902]
[1725516270086,0.58460241,57248.0,57247.0,0.03303902]
[1725516270785,1.70864241,57248.0,57247.0,0.00226203]
[1725516275789,1.73972151,57248.0,57247.0,0.00226203]
[1725516276690,0.58460241,57248.0,57247.0,0.00226203]
[1725516277188,0.63823248,57248.0,57247.0,0.00226203]
[1725516279793,0.27743248,57248.0,57247.0,0.00226203]
[1725516280095,0.57557007,57248.0,57247.0,0.00226203]
[1725516280410,0.86539789,57248.0,57247.0,0.00226203]
[1725516281295,0.86539852,57248.0,57247.0,0.00226203]
[1725516282000,0.63823311,57248.0,57247.0,0.00226203]
[1725516284087,0.27743311,57248.0,57247.0,0.00226203]
[1725516286587,0.27743439,57248.0,57247.0,0.00226203]
[1725516286792,0.27743439,57248.0,57236.0,0.421952]
[1725516286793,0.06115,57239.0,57236.0,0.421952]
[1725516287001,0.32478198,57239.0,57233.0,0.0461]
[1725516287203,0.38744439,57239.0,57233.0,0.0461]
[1725516287393,0.27266241,57239.0,57224.0,0.1]
[1725516287703,0.1,57227.0,57226.0,0.154264]
[1725516288602,0.16116,57229.0,57226.0,0.254264]
[1725516289906,0.16116,57229.0,57226.0,0.266264]
[1725516290506,0.16116,57229.0,57226.0,0.254264]
[1725516290708,0.16116,57229.0,57226.0,0.280264]
[1725516291405,0.1,57227.0,57226.0,0.280264]
[1725516292193,0.1,57227.0,57226.0,0.31095725]
[1725516293094,0.1,57227.0,57226.0,0.21095725]
[1725516294110,0.1,57227.0,57226.0,0.14979325]
[1725516294414,0.161162,57227.0,57226.0,0.10369325]
[1725516294795,0.161162,57227.0,57226.0,0.073]
[1725516296209,0.161162,57227.0,57226.0,0.059]
[1725516296412,0.162162,57227.0,57226.0,0.047]
[1725516298004,0.302162,57227.0,57226.0,0.047]
[1725516301912,0.302162,57227.0,57225.0,0.08023247]
[1725516301913,0.061164,57226.0,57225.0,0.08023247]
[1725516303303,0.062164,57226.0,57225.0,0.08023247]
[1725516304204,0.062164,57226.0,57225.0,0.08123247]
[1725516305207,0.062164,57226.0,57225.0,0.08223247]
[1725516307504,0.001,57226.0,57225.0,0.14339747]
[1725516310007,0.001,57226.0,57225.0,1.26763747]
[1725516310823,0.001,57226.0,57225.0,0.14339747]
[1725516313212,0.24,57231.0,57230.0,0.061159]
[1725516314117,0.06294204,57232.0,57231.0,0.061158]
[1725516314326,0.05390134,57232.0,57231.0,0.632658]
[1725516314815,0.00026203,57232.0,57231.0,0.632658]
[1725516315017,0.05389927,57232.0,57231.0,0.632658]
[1725516315213,0.00026203,57232.0,57231.0,0.632658]
[1725516316115,0.00026203,57232.0,57231.0,0.633658]
[1725516316418,0.00026203,57232.0,57231.0,0.66486641]
[1725516316814,0.00126203,57232.0,57231.0,0.66586641]
[1725516317716,0.06394204,57232.0,57231.0,1.26586641]
[1725516317910,0.00126203,57232.0,57231.0,1.26586641]
[1725516320114,0.00126203,57232.0,57231.0,0.14166641]
[1725516322023,0.00126203,57232.0,57231.0,0.24166641]
[1725516322218,0.00126203,57232.0,57231.0,0.24066641]
[1725516322419,0.00026203,57232.0,57231.0,0.23966641]
[1725516322723,0.00026203,57232.0,57231.0,0.24066641]
[1725516322914,0.00026203,57232.0,57231.0,0.60146641]
[1725516323315,0.05389543,57232.0,57231.0,0.60046641]
[1725516323509,0.05489543,57232.0,57231.0,0.60046641]
[1725516325027,0.05489618,57232.0,57231.0,0.50046641]
[1725516325219,0.05489618,57232.0,57231.0,0.60046641]
[1725516325412,0.15489618,57232.0,57231.0,0.50046641]
[1725516325712,0.15489618,57232.0,57231.0,0.13966641]
[1725516325919,0.05489618,57232.0,57231.0,0.23966641]
[1725516326913,0.05489618,57232.0,57231.0,0.60046641]
[1725516327923,0.05489618,57232.0,57231.0,0.74046641]
[1725516334928,0.05489612,57232.0,57231.0,0.74046641]
[1725516335919,0.05489612,57232.0,57231.0,0.80162441]
[1725516340239,0.05489504,57232.0,57231.0,0.80162441]
[1725516345433,0.05489504,57232.0,57231.0,0.50046641]
[1725516345639,0.05489504,57232.0,57231.0,0.74046641]
[1725516347435,0.05489504,57232.0,57231.0,0.37966641]
[1725516347634,0.05489504,57232.0,57231.0,0.74046641]
[1725516348028,0.05489504,57232.0,57231.0,0.60046641]
[1725516349537,0.05489504,57232.0,57231.0,0.55316641]
[1725516350130,0.00126203,57232.0,57231.0,0.55316641]
[1725516350333,0.05489735,57232.0,57231.0,0.55316641]
[1725516354339,0.05489735,57232.0,57231.0,0.45316641]
[1725516355231,0.05490032,57232.0,57231.0,0.45316641]
[1725516355832,0.05490032,57232.0,57231.0,0.09236641]
[1725516356941,0.05490032,57232.0,57231.0,0.19236641]
[1725516357530,0.11605732,57232.0,57231.0,0.03120841]
[1725516357840,0.11605732,57232.0,57231.0,0.1]
[1725516360445,0.11605603,57232.0,57231.0,0.1]
[1725516362951,0.11605603,57232.0,57229.0,0.0922608]
[1725516362952,0.11605603,57232.0,57229.0,0.1922608]
[1725516363148,0.053637,57231.0,57229.0,0.1922608]
[1725516363445,0.161159,57230.0,57229.0,0.0311008]
[1725516363749,0.201737,57230.0,57222.0,0.45381349]
[1725516363945,0.1,57223.0,57222.0,0.45381349]
[1725516364141,0.153637,57223.0,57222.0,0.45381349]
[1725516364340,0.214804,57223.0,57222.0,0.45381349]
[1725516364536,0.214804,57223.0,57222.0,0.03184649]
[1725516364845,0.061168,57222.0,57221.0,0.00026203]
[1725516365041,0.686685,57222.0,57221.0,0.00026203]
[1725516365242,1.34936058,57222.0,57221.0,0.00026203]
[1725516365444,1.34136058,57222.0,57221.0,0.00026203]
[1725516365643,0.68772358,57222.0,57221.0,0.00026203]
[1725516365839,0.68772358,57222.0,57209.0,0.3608]
[1725516365840,0.06118,57211.0,57209.0,0.3608]
[1725516366149,0.1,57210.0,57204.0,0.061187]
[1725516366340,0.1,57206.0,57204.0,0.061187]
[1725516367139,0.087,57206.0,57204.0,0.061187]
[1725516367742,0.161184,57208.0,57205.0,0.1]
[1725516367942,0.051184,57208.0,57204.0,0.061187]
[1725516368647,0.051184,57208.0,57204.0,0.057187]
[1725516369148,0.001,57206.0,57204.0,0.071187]
[1725516369651,0.2853,57207.0,57204.0,0.071187]
[1725516370446,0.001,57206.0,57204.0,0.071187]
[1725516370843,0.2853,57207.0,57204.0,0.057187]
[1725516371148,0.2863,57207.0,57204.0,0.071187]
[1725516371350,0.347484,57207.0,57204.0,0.071187]
[1725516371555,0.24,57205.0,57204.0,0.014]
[1725516371848,0.301186,57205.0,57204.0,0.014]
[1725516372050,0.36389273,57205.0,57204.0,0.014]
[1725516372462,0.061195,57197.0,57196.0,0.00088]
[1725516372752,0.061203,57189.0,57186.0,0.061206]
[1725516372950,0.24,57187.0,57186.0,0.061206]
[1725516373155,0.3608,57193.0,57185.0,0.0496]
[1725516373453,0.24,57191.0,57188.0,0.061204]
[1725516374049,0.061203,57189.0,57185.0,0.0496]
[1725516374348,0.3608,57193.0,57185.0,0.0496]
[1725516374349,0.6008,57186.0,57185.0,0.0496]
[1725516375052,0.662006,57186.0,57185.0,0.0496]
[1725516375251,0.662006,57186.0,57184.0,0.03210686]
[1725516375555,0.662006,57186.0,57183.0,0.06147128]
[1725516376343,0.061208,57185.0,57183.0,0.00026228]
[1725516377351,0.061208,57184.0,57183.0,0.00026228]
[1725516378856,0.422008,57184.0,57183.0,0.00026228]
[1725516379758,0.430008,57184.0,57183.0,0.00026228]
[1725516380152,0.422008,57184.0,57181.0,0.00302755]
[1725516380347,0.24,57182.0,57179.0,0.061213]
[1725516381054,0.24,57182.0,57180.0,0.061212]
[1725516381451,0.662008,57184.0,57180.0,0.061212]
[1725516382759,0.3608,57184.0,57183.0,0.30121]
[1725516384558,0.3291,57192.0,57191.0,0.061201]
[1725516384861,0.3291,57192.0,57191.0,0.301201]
[1725516385057,0.5691,57192.0,57191.0,0.061201]
[1725516386154,0.3291,57192.0,57191.0,0.061201]
[1725516386350,0.3291,57192.0,57191.0,0.301201]
[1725516387562,0.3291,57192.0,57191.0,0.33200105]
[1725516387758,0.3608,57194.0,57193.0,0.061199]
[1725516392868,0.00026228,57195.0,57194.0,0.061198]
[1725516396672,0.061199,57193.0,57191.0,0.03080005]
[1725516396876,0.061199,57193.0,57188.0,0.06138014]
[1725516396877,0.6008,57192.0,57188.0,0.06138014]
[1725516397180,0.24,57189.0,57188.0,0.09215238]
[1725516398278,0.24,57192.0,57191.0,0.0612]
[1725516398777,0.24026228,57195.0,57189.0,0.24]
[1725516399570,0.24026228,57195.0,57193.0,0.061199]
[1725516401786,0.061198,57194.0,57193.0,0.061199]
[1725516403982,0.24026228,57195.0,57194.0,0.061198]
[1725516403983,0.00026228,57195.0,57194.0,0.061198]
[1725516405782,0.06271913,57203.0,57202.0,0.061189]
[1725516405983,0.06271913,57209.0,57208.0,0.061183]
[1725516406184,0.30271913,57210.0,57208.0,0.061183]
[1725516407084,0.06271913,57210.0,57209.0,0.061182]
[1725516407383,0.06271913,57210.0,57209.0,0.421982]
[1725516407686,0.06271913,57213.0,57209.0,0.421982]
[1725516407882,0.00026228,57215.0,57211.0,0.24]
[1725516407883,0.06298141,57215.0,57211.0,0.24]
[1725516408088,0.06298141,57215.0,57213.0,0.061177]
[1725516408484,0.00026228,57215.0,57213.0,0.061177]
[1725516410686,0.24,57214.0,57213.0,0.061177]
[1725516411294,0.24,57214.0,57208.0,0.27203223]
[1725516411295,0.00026228,57215.0,57214.0,0.061176]
[1725516413997,0.06298141,57215.0,57214.0,0.061176]
[1725516416390,0.05391666,57215.0,57214.0,0.061176]
[1725516417892,0.0539148,57215.0,57214.0,0.061176]
[1725516419088,0.11663393,57215.0,57214.0,0.061176]
[1725516419290,0.0539148,57215.0,57214.0,0.09248866]
[1725516419491,0.11663393,57215.0,57214.0,0.09248866]
[1725516420103,0.0539148,57215.0,57214.0,0.09248866]
[1725516421597,0.11663393,57215.0,57214.0,0.09248866]
[1725516421797,0.0539148,57215.0,57214.0,0.09248866]
[1725516421995,0.35663393,57215.0,57214.0,0.03131266]
[1725516422192,0.41780893,57215.0,57207.0,0.0478]
[1725516422391,0.24,57211.0,57207.0,0.0478]
[1725516422705,0.06271913,57210.0,57207.0,0.07886793]
[1725516422895,0.06271913,57209.0,57208.0,0.061183]
[1725516423707,0.24,57211.0,57210.0,0.061181]
[1725516424004,0.29365615,57211.0,57210.0,0.061181]
[1725516424403,0.30269704,57211.0,57210.0,0.061181]
[1725516424797,0.285,57214.0,57211.0,0.061179]
[1725516425009,0.06143728,57215.0,57212.0,0.362358]
[1725516425010,0.11635032,57213.0,57212.0,0.362358]
[1725516425200,0.06268823,57223.0,57214.0,0.061176]
[1725516425503,0.00216,57224.0,57223.0,0.061167]
[1725516425703,0.06268823,57230.0,57227.0,0.061162]
[1725516425902,0.10768823,57232.0,57228.0,0.061161]
[1725516426102,0.10768823,57232.0,57229.0,0.06116]
[1725516426505,0.06268823,57232.0,57230.0,0.061159]
[1725516426709,0.3608,57233.0,57230.0,0.061159]
[1725516427902,0.24,57232.0,57230.0,0.061159]
[1725516429305,0.30267863,57232.0,57230.0,0.061159]
[1725516429609,0.24,57232.0,57230.0,0.061159]
[1725516429800,0.30267963,57232.0,57230.0,0.061159]
[1725516432796,0.24,57232.0,57231.0,0.061158]
[1725516433313,0.30267971,57232.0,57231.0,0.061158]
[1725516438011,0.06267971,57232.0,57231.0,0.061158]
[1725516438311,0.06267971,57234.0,57233.0,0.061156]
[1725516438611,0.00026228,57236.0,57235.0,0.061154]
[1725516439131,0.00026228,57236.0,57235.0,0.107354]
[1725516439600,0.00026228,57236.0,57235.0,0.153054]
[1725516441922,0.3608,57248.0,57247.0,0.061141]
[1725516442215,0.42346449,57248.0,57247.0,0.061141]
[1725516446710,0.42346449,57248.0,57247.0,0.09318033]
[1725516448315,0.3608,57248.0,57247.0,0.09318033]
[1725516448621,0.42346126,57248.0,57247.0,0.09318033]
[1725516451723,0.3608,57248.0,57247.0,0.09318033]
[1725516452519,0.0626601,57248.0,57247.0,0.51512133]
[1725516452720,0.00026205,57253.0,57252.0,0.061136]
[1725516452921,0.05387342,57253.0,57252.0,0.661936]
[1725516453116,4.2e-07,57253.0,57252.0,1.847072]
[1725516453432,0.0626601,57267.0,57265.0,0.061122]
[1725516453617,0.0626601,57267.0,57266.0,0.061121]
[1725516456130,0.13435694,57267.0,57264.0,0.0321447]
[1725516456327,0.13435694,57266.0,57265.0,0.061122]
[1725516456527,0.0626601,57266.0,57265.0,0.061122]
[1725516459726,0.0626601,57266.0,57264.0,0.06311508]
[1725516459727,0.3026601,57266.0,57264.0,0.06311508]
[1725516459931,0.0626601,57265.0,57264.0,0.06311508]
[1725516460321,0.0626601,57265.0,57264.0,0.12423808]
[1725516461325,0.0626601,57265.0,57264.0,0.09209338]
[1725516461526,0.1237821,57265.0,57264.0,0.03097038]
[1725516461726,0.1237821,57265.0,57261.0,0.00026205]
[1725516461930,0.1237821,57265.0,57261.0,0.06138805]
[1725516461931,0.24,57262.0,57261.0,0.06138805]
[1725516462124,0.3026601,57262.0,57261.0,0.06138805]
[1725516462930,0.3026601,57262.0,57261.0,0.0927343]
[1725516463832,0.24,57262.0,57261.0,0.0927343]
[1725516466031,0.0626448,57263.0,57262.0,0.061125]
[1725516466334,0.061122,57266.0,57264.0,0.061123]
[1725516466525,0.06264304,57267.0,57262.0,0.24]
[1725516466931,0.06264304,57267.0,57266.0,0.061121]
[1725516467636,0.664119,57268.0,57266.0,0.061121]
[1725516468232,0.06264145,57267.0,57266.0,0.061121]
[1725516468629,0.661919,57268.0,57266.0,0.061121]
[1725516468831,0.6008,57268.0,57262.0,0.24]
[1725516469149,0.3608,57268.0,57267.0,0.06112]
[1725516469340,0.42343878,57268.0,57267.0,0.06112]
[1725516469935,0.3608,57268.0,57267.0,0.06112]
[1725516470442,0.6008,57268.0,57267.0,0.06112]
[1725516470737,0.66343814,57268.0,57267.0,0.06112]
[1725516472132,0.30263814,57268.0,57267.0,0.06112]
[1725516472641,0.24,57268.0,57267.0,0.06112]
[1725516473138,0.24,57268.0,57267.0,0.09280879]
[1725516473945,0.301119,57268.0,57267.0,0.03168879]
[1725516474237,0.36375714,57268.0,57265.0,0.061122]